[Event "New York Spring IM-D 2022"]
[Site "New York"]
[Date "2022.04.16"]
[Round "3.4"]
[White "Dans, Dwight"]
[Black "Adewumi, Tanitoluwa"]
[Result "0-1"]
[ECO "A25"]
[WhiteElo "1979"]
[BlackElo "2190"]
[Annotator "TA"]
[PlyCount "56"]
[EventDate "2022.04.14"]
[EventType "tourn"]
[EventCountry "USA"]
[SourceTitle "playchess.com"]
[Source "ChessBase"]
[SourceQuality "1"]
[TimeControl "5400+30"]

{[%evp 12,56,24,0,2,0,28,10,10,8,2,12,0,-13,13,0,129,0,0,-9,-5,-23,-28,-66,-78,-98,-55,-52,-8,-22,-30,-104,-101,-287,-286,-280,-282,-286,-255,-326,-274,-679,-680,-656,-662,-661,-667]} 1. c4 {[%emt 0:00:04]} e5 {[%emt 0:00:24]} 2. Nc3 {[%emt 0:00:08]} Nc6 {[%emt 0:00:03]} 3. g3 {[%emt 0:00:19]} g6 {[%emt 0:00:04]} 4. Bg2 {[%emt 0:01:05]} Bg7 {[%emt 0:00:01]} 5. e3 {[%emt 0:00:37]} d6 {[%emt 0:00:14]} 6. Nge2 {[%emt 0:05:32]} Nf6 {[%emt 0:00:10]} 7. d4 {[%emt 0:01:57]} exd4 {[%emt 0:00:11] A25: English Opening vs King's Indian with ...Nc6 but without early d3.} 8. exd4 {[%emt 0:00:16]} Bf5 {[%emt 0:00:27]} 9. h3 {[%emt 0:02:44]} h5 {[%emt 0:01:00] The position is equal.} 10. Be3 $1 {[%emt 0:05:44]} O-O {[%emt 0:00:11]} 11. O-O {[%emt 0:01:12][%cal Be1g1,Bg1h2,Bh2g2][%mdl 32]} Qd7 {[%emt 0:00:10]} 12. Kh2 {[%emt 0:01:16] [#]} Rfe8 $146 {[%emt 0:00:33]} ({Predecessor:} 12... Rae8 13. Qd2 Ne4 14. Nxe4 Bxe4 15. f3 Bf5 16. Nc3 Rxe3 17. Qxe3 Nxd4 18. Rad1 c5 {1-0 (27) Loew,G (2286)-Budai,Z Bad Wiessee 2001}) 13. Qd2 {[%emt 0:02:45]} Ne4 {[%emt 0:01:57] [#]} (13... Nb4 $11 {remains equal.}) 14. Nxe4 {[%emt 0:04:13]} (14. Bxe4 $1 $16 Bxe4 15. f3) 14... Bxe4 $11 {[%emt 0:00:28]} 15. Bxe4 {[%emt 0:10:29]} Rxe4 {[%emt 0:00:04]} 16. Kg2 {[%emt 0:07:03]} Ree8 {[%emt 0:06:48]} 17. Qc2 {[%emt 0:08:35]} d5 {[%emt 0:00:58]} 18. c5 {[%emt 0:01:19]} h4 {[%emt 0:01:25] White must now prevent ...hxg3.} 19. g4 {[%emt 0:04:21]} Re6 {[%emt 0:03:00]} 20. Rad1 {[%emt 0:02:17]} Rae8 {[%emt 0:00:50]} 21. Ng1 {[%emt 0:05:39] [#]} (21. Nc3 $11 {keeps the balance.}) 21... Re4 $1 $17 {[%emt 0:02:39][%cal Rg7d4]} 22. Rd3 $2 {[%emt 0:04:58] White does not recover from this.} (22. Qc3 $17 {was called for.}) 22... Nb4 $19 {[%emt 1:19:53]} ({Don't go for} 22... Bxd4 $2 23. Qd2 Bxe3 24. fxe3 $19) ({Inferior is} 22... Nxd4 23. Bxd4 Rxd4 24. Rxd4 Bxd4 25. Nf3 $17) 23. Qd1 {[%emt 0:00:15]} Nxd3 {[%emt 0:00:00]} 24. Qxd3 {[%emt 0:00:14]} c6 {[%emt 0:00:00]} 25. Ne2 {[%emt 0:01:47]} f5 {[%emt 0:00:00]} 26. g5 {[%emt 0:02:42]} (26. Nc3 fxg4 27. Nxe4 gxh3+ 28. Kh1 Rxe4 29. f3) 26... f4 {[%emt 0:00:00] Black is clearly winning.} 27. Nxf4 {[%emt 0:26:29]} Qf5 {[%csl LRf4,LRg5]} 28. Qd2 {[%emt 0:00:00] [#]} Bxd4 $1 {[%emt 0:00:00][%mdl 512] Weighted Error Value: White=0.54/Black=0.21 (precise)} 0-1

[Event "New York Spring IM-D 2022"]
[Site "New York"]
[Date "2022.04.15"]
[Round "3.5"]
[White "Jacobson, Aaron"]
[Black "Paragua, Mark"]
[Result "1/2-1/2"]
[ECO "B47"]
[WhiteElo "2263"]
[BlackElo "2456"]
[Annotator "TA"]
[PlyCount "50"]
[EventDate "2022.04.14"]
[EventType "tourn"]
[EventCountry "USA"]
[SourceTitle "playchess.com"]
[Source "ChessBase"]
[SourceQuality "1"]
[TimeControl "5400+30"]

{[%evp 25,50,31,44,-4,-4,-5,-4,0,0,0,0,0,0,-3,0,-8,0,0,0,0,0,0,0,0,-14,-33,-32]} 1. e4 {[%emt 0:00:05]} c5 {[%emt 0:00:23]} 2. Nf3 {[%emt 0:00:05]} e6 {[%emt 0:00:35]} 3. d4 {[%emt 0:00:56]} cxd4 {[%emt 0:00:06]} 4. Nxd4 {[%emt 0:00:03]} Nc6 {[%emt 0:01:29]} 5. Nc3 {[%emt 0:00:15]} Qc7 {[%emt 0:00:37]} 6. g3 {[%emt 0:02:13]} a6 {[%emt 0:03:21]} 7. Bg2 {[%emt 0:00:19]} Nf6 {[%emt 0:00:11]} 8. O-O {[%emt 0:00:36]} Nxd4 {[%emt 0:01:45]} 9. Qxd4 {[%emt 0:00:06]} Bc5 {[%emt 0:00:15]} 10. Bf4 {[%emt 0:00:45]} d6 {[%emt 0:00:14]} 11. Qd2 {[%emt 0:00:49]} h6 {[%emt 0:01:19]} 12. Rad1 {[%emt 0:22:03]} e5 {[%emt 0:04:28]} 13. Be3 {[%emt 0:00:06]} Ke7 {[%emt 0:00:55] [#]} 14. Na4 $146 {[%emt 0:03:43] B47: Sicilian: Taimanov: 5 Nc3 Qc7 6 f4, 6 g3 and 6 Be2.} (14. f4 $14 Be6 15. fxe5 dxe5 16. Nd5+ (16. Bxc5+ Qxc5+ 17. Kh1 Rhd8 $14) 16... Bxd5 17. exd5) ({Predecessor:} 14. Bxc5 Qxc5 15. Na4 Qc7 16. f4 Rd8 17. fxe5 dxe5 18. Qb4+ Ke8 19. Nb6 Rxd1 20. Rxd1 Rb8 21. Nd5 Nxd5 22. exd5 b5 {½-½ (31) Vaibhav,S (2591)-Aravindh,C (2630) Moscow 2020}) 14... Bxe3 $11 {[%emt 0:03:50]} 15. Qxe3 {[%emt 0:00:33]} b5 {[%emt 0:00:00][%cal Bb7b5,Bb5b4,Bb4b3][%mdl 32]} 16. Nb6 {[%emt 0:01:21] The position is equal.} Rb8 {[%emt 0:00:00]} 17. Nxc8+ {[%emt 0:03:57]} Rhxc8 {[%emt 0:00:00]} 18. Rd2 {[%emt 0:06:12]} Qc5 {[%emt 0:00:00]} 19. Qf3 {[%emt 0:03:44]} b4 {[%emt 0:00:00]} 20. Rfd1 {[%emt 0:03:02]} Rb6 {[%emt 0:00:00]} 21. Bf1 {[%emt 0:10:39]} Qa5 {[%emt 0:00:00]} 22. Ra1 {[%emt 0:07:32]} b3 {[%emt 0:00:00]} 23. c3 {[%emt 0:00:34]} bxa2 {[%emt 0:00:00]} 24. Bd3 {[%emt 0:00:43]} Qa4 {[%emt 0:00:00]} 25. Qe2 {[%emt 0:01:07]} (25. Qe3 $5 {[%cal Re3b6]} Rcc6 26. b4 $15) 25... a5 {[%emt 0:00:00] Weighted Error Value: White=0.06 (flawless) /Black=0.01 (flawless)} 1/2-1/2

[Event "New York Spring IM-D 2022"]
[Site "New York"]
[Date "2022.04.16"]
[Round "4.1"]
[White "Wang, Eigen"]
[Black "Paragua, Mark"]
[Result "0-1"]
[ECO "A61"]
[WhiteElo "2242"]
[BlackElo "2456"]
[Annotator "TA"]
[PlyCount "78"]
[EventDate "2022.04.14"]
[EventType "tourn"]
[EventCountry "USA"]
[SourceTitle "playchess.com"]
[Source "ChessBase"]
[SourceQuality "1"]
[TimeControl "5400+30"]

{[%evp 13,78,50,50,13,23,0,0,0,0,0,14,-18,0,-70,-47,-52,-49,-96,-31,-35,-27,-37,-18,-20,-16,-18,-11,-24,-25,-9,-22,-52,-47,-131,-143,-222,-228,-215,-220,-210,-225,-294,-285,-277,-294,-272,-281,-328,-326,-283,-279,-439,-439,-431,-406,-825,-842,-831,-824,-746,-864,-864,-864,-819,-794,-700,-583]} 1. d4 {[%emt 0:00:06]} Nf6 {[%emt 0:00:07]} 2. c4 {[%emt 0:00:07]} e6 {[%emt 0:00:39]} 3. Nf3 {[%emt 0:00:10]} c5 {[%emt 0:00:29]} 4. d5 {[%emt 0:01:15]} d6 {[%emt 0:00:56]} 5. Nc3 {[%emt 0:00:07]} exd5 {[%emt 0:00:19]} 6. cxd5 {[%emt 0:00:06]} g6 {[%emt 0:00:18]} 7. Bf4 {[%emt 0:01:02]} Bg7 $1 {[%emt 0:01:51][%mdl 4] is currently scoring better than 7...a6.} 8. e3 {[%emt 0:00:47] A61: Modern Benoni: Nf3 without early e4.} O-O {[%emt 0:01:29]} 9. Be2 {[%emt 0:00:26]} Na6 {[%emt 0:05:18]} 10. O-O {[%emt 0:01:07] The position is equal.} Nc7 {[%emt 0:01:41]} 11. a4 {[%emt 0:06:53]} Re8 {[%emt 0:02:04] [#]} 12. Ra3 $146 {[%emt 0:08:21]} ({Predecessor:} 12. h3 Bf5 13. Qb3 Ne4 14. Rfd1 Rb8 15. Nd2 Nxd2 16. Rxd2 g5 17. Bg3 Bg6 18. Bd3 {1-0 (80) Botez,A (2033)-Stoyanov,V (2238) Reykjavik 2019}) 12... b6 {[%emt 0:04:26]} 13. Bd3 {[%emt 0:12:29]} (13. h3 $1 $11) 13... a6 {[%emt 0:05:01]} 14. e4 {[%emt 0:03:27]} Rb8 $1 {[%emt 0:00:46]} 15. Bb1 {[%emt 0:04:34]} (15. Ra1 $15) 15... Bg4 {[%emt 0:04:08]} (15... b5 $1 $17 {[%cal Rb5b4] Threatens to win with ...b4.} 16. axb5 axb5) 16. h3 $15 {[%emt 0:03:30]} Bxf3 {[%emt 0:00:39]} (16... Bh5 {feels hotter.} 17. g4 Nxg4 18. hxg4 Bxg4 19. Kg2 b5) 17. Qxf3 {[%emt 0:00:05]} Nh5 {[%emt 0:10:01]} 18. Bh2 {[%emt 0:03:31]} b5 {[%emt 0:03:49] Strongly threatening ...b4.} 19. axb5 {[%emt 0:01:06]} axb5 {[%emt 0:00:36][%cal Ba6b5,Bb5b4][%mdl 32]} 20. Ra7 {[%emt 0:01:32]} b4 {[%emt 0:00:18]} 21. Nd1 {[%emt 0:01:45]} Nf6 {[%emt 0:01:45][%cal Bh5f6,Bf6d5,Bd5b6,Bb6c4,Bc4d2,Bd2f1][%mdl 32]} 22. Bd3 {[%emt 0:05:31]} c4 {[%emt 0:04:13]} 23. e5 {[%emt 0:03:22] White is now going downhill.} Nb5 $1 $17 {[%emt 0:00:44]} (23... cxd3 $6 24. exf6 Bh8 25. Qxd3 $11) (23... dxe5 $6 24. Bxc4 Nb5 25. Bxb5 Rxb5 26. Ne3 $11) 24. Ra6 {[%emt 0:02:45] [#]} (24. Rxf7 $17 {was necessary.} Kxf7 25. exf6) 24... Nd4 $1 $19 {[%emt 0:07:48]} 25. Qe3 {[%emt 0:02:48]} dxe5 {[%emt 0:02:06]} (25... cxd3 26. Qxd4 Nd7 27. Rxd6 $16) 26. Bxc4 {[%emt 0:00:44]} Nxd5 {[%emt 0:00:07]} 27. Qe4 {[%emt 0:02:22]} Nb6 {[%emt 0:00:59] Pair of Knights!} 28. Bd3 {[%emt 0:05:23]} f5 {[%emt 0:00:15]} 29. Qe3 {[%emt 0:00:27]} Rc8 {[%emt 0:01:16][%cal Bb8c8,Bc8c1,Bc1d1][%mdl 32]} 30. Ra7 {[%emt 0:00:56][%cal Oa7g7]} e4 {[%emt 0:06:41]} 31. Ba6 {[%emt 0:01:48]} Nc4 {[%emt 0:03:11]} 32. Qe1 {[%emt 0:03:19] [#]} (32. Bxc4+ {is the only way for White.} Rxc4 33. Bf4) 32... Nd2 $1 {[%emt 0:05:29][%mdl 512]} 33. Kh1 {[%emt 0:04:34]} ({Much worse is} 33. Qxd2 {[#]} Nf3+ $1 {[%mdl 512]} 34. gxf3 Qxd2) ({Not} 33. Rxg7+ $2 Kxg7 34. Kh1 Nxf1 35. Bxc8 Nxh2 36. Qxb4 Ng4 $1 {[%mdl 512]}) 33... Nxf1 {[%emt 0:02:10] Active counter play!} 34. Qxf1 {[%emt 0:01:10]} (34. Bxc8 $142 Nxh2 35. Qxb4 Qxc8 36. Rxg7+ Kxg7 37. Qxd4+ Kf7 38. Kxh2) 34... Rc1 {[%emt 0:02:49] Black is clearly winning.} 35. Bf4 {[%emt 0:01:05]} e3 {[%emt 0:00:10]} 36. Bxe3 {[%emt 0:03:17] [#]} Rxe3 $1 {[%emt 0:00:06][%mdl 512]} 37. fxe3 {[%emt 0:00:11]} Nc6 {[%emt 0:00:08]} 38. Bc4+ {[%emt 0:03:28]} Kh8 {[%emt 0:00:19]} 39. Rxg7 {[%emt 0:00:16]} Rxd1 {[%emt 0:02:23] Weighted Error Value: White=0.36/Black=0.03 (flawless)} 0-1

[Event "New York Spring IM-D 2022"]
[Site "New York"]
[Date "2022.04.16"]
[Round "4.2"]
[White "Adewumi, Tanitoluwa"]
[Black "Jacobson, Aaron"]
[Result "1-0"]
[ECO "C54"]
[WhiteElo "2190"]
[BlackElo "2263"]
[Annotator "TA"]
[PlyCount "90"]
[EventDate "2022.04.14"]
[EventType "tourn"]
[EventCountry "USA"]
[SourceTitle "playchess.com"]
[Source "ChessBase"]
[SourceQuality "1"]
[TimeControl "5400+30"]

{[%evp 11,90,18,25,11,25,21,29,14,22,0,0,0,0,0,0,0,0,-18,14,11,26,51,36,32,70,24,41,33,26,34,64,78,70,69,142,140,243,239,272,268,484,480,471,462,601,616,602,606,734,446,426,427,421,385,381,353,353,353,399,390,413,429,466,456,468,472,494,504,675,687,692,668,776,777,777,777,769,767,804,754,5783]} 1. e4 {[%emt 0:00:02]} e5 {[%emt 0:05:07]} 2. Nf3 {[%emt 0:00:31]} Nc6 {[%emt 0:00:06]} 3. Bc4 {[%emt 0:00:04]} Nf6 {[%emt 0:00:32]} 4. d3 {[%emt 0:00:05]} Bc5 {[%emt 0:00:46]} 5. O-O {[%emt 0:00:12]} d6 {[%emt 0:00:17]} 6. c3 {[%emt 0:00:34]} a6 {[%emt 0:00:30]} 7. h3 {[%emt 0:03:48] 7.a4 is a critical line. C54: Giuoco Piano: 4 c3 Nf6, main lines with 5 d4 and 5 d3.} Ba7 {[%emt 0:03:19]} 8. Re1 {[%emt 0:04:20]} h6 {[%emt 0:10:26]} 9. Nbd2 {[%emt 0:10:19] White has an edge.} Na5 {[%emt 0:18:42] [#]} 10. d4 $146 {[%emt 0:06:53]} (10. Bd5 $5) ({Predecessor:} 10. a4 Nxc4 11. Nxc4 Be6 12. Ne3 Qd7 13. b4 g5 14. Nh2 O-O-O 15. Qf3 Nh7 16. Nf5 {1-0 (37) Magnusdottir,V (1571)-Jonsson,O (1899) Reykjavik 2015}) 10... Nxc4 {[%emt 0:01:50]} 11. Nxc4 {[%emt 0:00:05]} exd4 {[%emt 0:02:00]} 12. cxd4 {[%emt 0:00:22]} O-O $1 {[%emt 0:03:18][%cal Of6e4]} 13. Ncd2 {[%emt 0:00:08]} Re8 {[%emt 0:23:12]} 14. b3 {[%emt 0:04:52]} d5 {[%emt 0:00:59][%cal Rd5e4]} 15. e5 {[%emt 0:00:12]} Ne4 {[%emt 0:01:11]} 16. Nxe4 {[%emt 0:03:01]} dxe4 {[%emt 0:00:06]} 17. Rxe4 {[%emt 0:00:12]} Qd5 {[%emt 0:01:48]} 18. Re1 {[%emt 0:00:13]} ({White should try} 18. Rf4 $14) 18... Bf5 {[%emt 0:01:00]} 19. Be3 {[%emt 0:00:12]} Rad8 {[%emt 0:03:15]} 20. Qe2 {[%emt 0:02:02]} Be4 {[%emt 0:06:18]} 21. Nh4 {[%emt 0:06:05]} Bh7 {[%emt 0:10:58]} 22. Rad1 {[%emt 0:01:28]} g5 {[%emt 0:01:59] White leaves nothing to chance now.} (22... Bb6 $14) 23. Qg4 $16 {[%emt 0:12:24]} Qd7 {[%emt 0:02:17] [#]} (23... Kh8 $16 {is a better defense.}) 24. Qg3 $1 $18 {[%emt 0:00:46] Strongly threatening f4.} Kh8 {[%emt 0:00:56] [#]} 25. Nf3 {[%emt 0:00:43]} Qe6 $2 {[%emt 0:01:28]} (25... c6 26. h4 Bc2) 26. d5 {[%emt 0:00:20]} Rxd5 {[%emt 0:00:25]} 27. Bxa7 {[%emt 0:00:14]} b6 {[%emt 0:00:08]} 28. Rxd5 {[%emt 0:00:07]} Qxd5 {[%emt 0:00:07]} 29. e6 {[%emt 0:00:03] Inhibits Qd7.} Be4 {[%emt 0:01:27]} 30. Qe5+ {[%emt 0:00:59]} Qxe5 {[%emt 0:00:18]} 31. Nxe5 {[%emt 0:00:05]} f5 {[%emt 0:00:15]} 32. Rc1 {[%emt 0:00:29]} ({Don't do} 32. e7 Kg7 33. f3 Bd5 $18) 32... Rxe6 {[%emt 0:00:56]} 33. Nf7+ {[%emt 0:00:06]} Kg8 {[%emt 0:00:27]} 34. Rxc7 {[%emt 0:00:05]} Bd5 {[%emt 0:00:08]} 35. Kh2 {[%emt 0:00:24]} f4 {[%emt 0:00:55]} 36. Nd8 {[%emt 0:01:18]} Rd6 {[%emt 0:01:04] White is clearly winning.} 37. Rc8 {[%emt 0:00:18] Threatens to win with Nb7+.} Kh7 {[%emt 0:00:00]} 38. Bb8 {[%emt 0:00:13]} Rg6 {[%emt 0:00:25]} 39. Be5 {[%emt 0:00:25]} Rg8 {[%emt 0:00:16]} 40. Rc7+ {[%emt 0:00:07]} Kg6 {[%emt 0:00:04]} 41. Nc6 {[%emt 0:00:09]} Kf5 {[%emt 0:00:19]} 42. Ne7+ {[%emt 0:00:09]} Kxe5 {[%emt 0:00:04]} 43. Nxg8 {[%emt 0:00:07]} Bxg8 {[%emt 0:00:04]} 44. Rc6 {[%emt 0:00:08][%csl LRb6,LRh6]} h5 {[%emt 0:00:15]} 45. Rg6 {[%emt 0:00:04]} Kd5 {[%emt 0:03:03] Weighted Error Value: White=0.14 (very precise) /Black=0.34} 1-0

[Event "New York Spring IM-D 2022"]
[Site "New York"]
[Date "2022.04.17"]
[Round "5.1"]
[White "Espinosa, Pedro"]
[Black "Wang, Eigen"]
[Result "1-0"]
[ECO "C10"]
[WhiteElo "2012"]
[BlackElo "2242"]
[Annotator "TA"]
[PlyCount "49"]
[EventDate "2022.04.14"]
[EventType "tourn"]
[EventCountry "USA"]
[SourceTitle "playchess.com"]
[Source "ChessBase"]
[SourceQuality "1"]
[TimeControl "5400+30"]

{[%evp 24,49,31,39,31,0,19,14,20,12,439,447,524,535,601,699,972,919,967,939,1241,1155,29987,29988,29988,29989,29992,29993]} 1. e4 {[%emt 0:00:02]} e6 {[%emt 0:00:06]} 2. d4 {[%emt 0:00:11]} d5 {[%emt 0:00:05]} 3. Nc3 {[%emt 0:00:12]} Nf6 {[%emt 0:00:08]} 4. Bg5 {[%emt 0:00:12]} dxe4 {[%emt 0:01:02]} 5. Nxe4 {[%emt 0:00:33]} Nbd7 {[%emt 0:00:05]} 6. Nf3 {[%emt 0:01:16]} h6 {[%emt 0:00:18]} 7. Nxf6+ {[%emt 0:01:06]} Nxf6 {[%emt 0:00:07]} 8. Bh4 {[%emt 0:00:49]} Be7 {[%emt 0:00:22]} 9. Bd3 {[%emt 0:01:27]} O-O {[%emt 0:01:31]} 10. Qe2 {[%emt 0:02:22]} c5 {[%emt 0:00:45]} 11. dxc5 {[%emt 0:01:58]} Qa5+ {[%emt 0:00:46]} 12. c3 {[%emt 0:01:47]} Qxc5 {[%emt 0:00:08]} 13. O-O-O {[%emt 0:01:57]} Bd7 {[%emt 0:04:48] C10: French with 3 Nc3: Unusual Black 3rd moves and 3...dxe4.} 14. g4 {[%emt 0:13:22]} (14. Ne5 {looks sharper.} Ba4 15. Rde1 a6 16. Kb1) 14... Bc6 {[%emt 0:12:27]} 15. Rhg1 {[%emt 0:03:42] [#]} g5 $146 {[%emt 0:05:15] Hoping for ...Bxf3. The position is equal.} ({Predecessor:} 15... Nd5 16. Bxe7 Qxe7 17. Bc2 Rac8 18. g5 h5 19. Ne5 g6 20. Bxg6 Nf4 21. Qc2 fxg6 22. Nxg6 Nxg6 23. Qxg6+ {0-1 (37) Karaoglan,D (2230)-Nikitenko,M (2436) Chess.com INT 2020}) 16. Bg3 {[%emt 0:02:17]} Nxg4 $2 {[%emt 0:07:14][%mdl 8192] This move loses the game for Black.} (16... Rfd8 $11 {and Black stays safe.}) 17. Nd4 $18 {[%emt 0:06:20]} Nf6 {[%emt 0:01:25]} 18. h4 {[%emt 0:04:35]} Ba4 {[%emt 0:07:00]} 19. Rde1 {[%emt 0:06:32]} Rfd8 {[%emt 0:11:57] [#]} 20. hxg5 $1 {[%emt 0:05:22]} hxg5 {[%emt 0:00:24]} (20... Rxd4 21. gxf6) 21. Be5 {[%emt 0:02:16]} Kf8 {[%emt 0:05:53]} 22. Rh1 {[%emt 0:18:36] White threatens Rh8+ and mate.} Rac8 {[%emt 0:16:47]} 23. Rh8+ {[%emt 0:03:10] White mates.} Kg7 {[%emt 0:00:32]} 24. Rh7+ {[%emt 0:00:50]} Kg8 {[%emt 0:03:40] [#]} 25. Qh5 $3 {[%emt 0:00:25][%mdl 512] Weighted Error Value: White=0.03 (flawless) /Black=1.36} 1-0

[Event "New York Spring IM-D 2022"]
[Site "New York"]
[Date "2022.04.17"]
[Round "5.5"]
[White "Paragua, Mark"]
[Black "Adewumi, Tanitoluwa"]
[Result "1/2-1/2"]
[ECO "B40"]
[WhiteElo "2456"]
[BlackElo "2190"]
[Annotator "TA"]
[PlyCount "142"]
[EventDate "2022.04.14"]
[EventType "tourn"]
[EventCountry "USA"]
[SourceTitle "playchess.com"]
[Source "ChessBase"]
[SourceQuality "1"]
[TimeControl "5400+30"]

{[%evp 9,142,12,27,24,22,22,33,0,41,38,31,33,37,-21,6,16,36,-2,-2,-2,0,12,67,70,88,83,75,72,110,29,106,92,96,95,100,103,106,41,77,81,84,89,100,90,79,87,75,94,97,96,116,118,232,148,153,152,152,152,153,153,153,129,180,189,197,140,126,72,72,72,72,72,72,72,72,72,72,72,72,72,72,72,72,72,72,72,72,72,72,72,72,72,72,72,72,72,72,72,72,72,72,7,7,0,7,7,7,7,7,7,7,7,7,7,7,7,8,8,8,8,8,0,8,8,8,8,8,0,0,0,0,0,0,0,0]} 1. e4 {[%emt 1:31:00]} c5 {[%emt 0:00:06]} 2. Nf3 {[%emt 0:00:00]} e6 {[%emt 0:00:09]} 3. g3 {[%emt 0:00:00]} Nc6 {[%emt 0:00:04]} 4. Bg2 {[%emt 0:00:00]} Nf6 {[%emt 0:00:42]} 5. Qe2 {[%emt 0:00:00]} d5 {[%emt 0:00:32]} 6. exd5 {[%emt 0:00:00] B40: Sicilian: 2...e6, Unusual lines.} Nxd5 {[%emt 0:00:14]} 7. O-O {[%emt 0:00:00]} Be7 {[%emt 0:00:14]} 8. Rd1 {[%emt 0:00:00] White is slightly better.} Bf6 {[%emt 0:00:11] Against d4} (8... e5 $5 {[%cal Rc8g4]}) 9. Nc3 {[%emt 0:00:00]} O-O {[%emt 0:08:51]} 10. Ne4 {[%emt 0:00:00]} Be7 {[%emt 0:02:37]} 11. c4 {[%emt 0:00:00]} (11. d4 $14) 11... Nc7 {[%emt 0:02:35]} 12. b4 {[%emt 0:00:00][%cal Od2d4]} Nd4 {[%emt 0:06:02] [#]} 13. Qd3 $146 {[%emt 0:00:00]} ({Predecessor:} 13. Nxd4 Qxd4 14. Rb1 cxb4 15. Bb2 Qb6 16. d4 f5 17. Nc5 Bxc5 18. dxc5 Qxc5 19. Be5 {1-0 (59) Ter Sahakyan,S (2604)-Hayrapetyan,H (2489) Yerevan 2016}) 13... Nxf3+ {[%emt 0:09:24]} (13... e5 {seems wilder.} 14. Bb2 Bg4 15. Nxe5 Bxd1 16. Rxd1 f6) 14. Qxf3 {[%emt 0:00:00]} cxb4 {[%emt 0:01:19]} 15. d4 $1 {[%emt 0:00:00]} f5 {[%emt 0:00:31]} (15... Bd7 $11) 16. Nc5 $14 {[%emt 0:00:00][%mdl 1024] White has compensation.} b6 {[%emt 0:01:54] [#]} 17. Bf4 $1 {[%emt 0:00:00] Qc6 is the strong threat.} Bd6 {[%emt 0:01:13]} (17... bxc5 $2 18. dxc5 (18. Bxc7 Qxc7 19. Qxa8 Bf6 $17) 18... Qe8 19. Bxc7 $18) 18. Nd3 {[%emt 0:00:00]} Ba6 {[%emt 1:02:52]} 19. c5 {[%emt 0:00:00]} (19. Ne5 $16) 19... Bxf4 {[%emt 0:00:00]} (19... Bxd3 $11 {keeps the balance.} 20. cxd6 Be4 21. dxc7 Qd5) 20. Qxf4 $16 {[%emt 0:00:00]} Nd5 {[%emt 0:00:00]} 21. Bxd5 {[%emt 0:00:00][%mdl 64] Remove Defender} Qxd5 {[%emt 0:00:00]} 22. Nxb4 {[%emt 0:00:00]} Qc4 {[%emt 0:00:00]} 23. Rab1 {[%emt 0:00:00]} ({White should play} 23. Qd2 $16) 23... bxc5 {[%emt 0:00:00]} 24. Nxa6 {[%emt 0:00:00][%mdl 64] Overworked Piece} Qxa6 {[%emt 0:00:00]} 25. dxc5 {[%emt 0:00:00]} Qc6 {[%emt 0:00:00]} 26. Qd6 {[%emt 0:00:00]} Qxd6 {[%emt 0:00:00]} 27. Rxd6 {[%emt 0:00:00][%mdl 4096] Endgame KRR-KRR} Kf7 {[%emt 0:00:00]} 28. Rb7+ {[%emt 0:00:00]} Kf6 {[%emt 0:00:00]} 29. Rdd7 {[%emt 0:00:00][%csl LRa7,LRg7]} g5 {[%emt 0:00:00]} 30. Rxh7 {[%emt 0:00:00]} g4 {[%emt 0:00:00]} (30... Rac8 $16) 31. h3 {[%emt 0:00:00]} (31. Rxa7 $6 Rfc8 $16) 31... Rac8 {[%emt 0:00:00]} 32. hxg4 {[%emt 0:00:00]} fxg4 {[%emt 0:00:00]} 33. Rhg7 {[%emt 0:00:36] 0x0.002037565f53dp-1022s more active pieces.} Rxc5 {[%emt 0:00:00]} 34. Rxg4 {[%emt 0:00:15]} Ra8 {[%emt 0:00:00]} 35. Rgg7 {[%emt 0:01:41]} Rc2 {[%emt 0:00:00]} (35... e5 $16) 36. Rbf7+ $18 {[%emt 0:07:03]} ({Resist} 36. Rxa7 Rxa2 37. Raf7+ (37. Rgf7+ Kg6 $16) 37... Ke5 $16) 36... Ke5 {[%emt 0:09:00]} 37. Rxa7 {[%emt 0:00:14]} ({White should try} 37. Rg5+ $18 Kd6 38. Ra5) 37... Rxa2 $16 {[%emt 0:00:00] [#]} 38. Rxa2 {[%emt 0:00:09]} (38. Raf7 $142 $1) 38... Rxa2 $18 {[%emt 0:00:00] KR-KR} 39. Rf7 {[%emt 0:00:03]} Kd6 {[%emt 0:00:00]} 40. Kg2 {[%emt 0:00:39]} e5 {[%emt 0:00:00]} 41. g4 {[%emt 0:00:04]} Ke6 {[%emt 0:00:00]} 42. Rf8 {[%emt 0:00:08]} Ke7 {[%emt 0:00:00]} 43. Rf3 {[%emt 0:00:06]} Ra8 {[%emt 0:00:00]} 44. Kg3 {[%emt 0:00:23] Hoping for g5.} Rg8 {[%emt 0:00:00]} 45. Kh4 {[%emt 0:03:01]} Rh8+ {[%emt 0:00:00] [#]} 46. Kg5 $1 {[%emt 0:00:07] Threatens to win with Rf5.} Rg8+ {[%emt 0:00:00]} 47. Kf5 {[%emt 0:00:05]} Rf8+ {[%emt 0:00:00]} 48. Ke4 {[%emt 0:00:03]} Rg8 {[%emt 0:00:00]} 49. Rg3 {[%emt 0:03:11]} Rf8 {[%emt 0:00:00]} 50. f3 {[%emt 0:03:02]} ({Much weaker is} 50. Kxe5 Rxf2 51. Rg1 (51. g5 Kf7 $11) 51... Kf7 $11) 50... Ke6 {[%emt 0:00:00]} 51. Rh3 {[%emt 0:00:13]} Rf6 {[%emt 0:00:00]} 52. Rh8 {[%emt 0:00:17] Strongly threatening Re8+.} Rf4+ {[%emt 0:00:00]} 53. Ke3 {[%emt 0:00:01]} Kf7 {[%emt 0:00:00]} 54. Rh6 {[%emt 0:00:12]} Ra4 {[%emt 0:00:00]} 55. g5 {[%emt 0:00:05]} (55. Rb6 $16) 55... Rf4 $11 {[%emt 0:00:00] The position is equal.} 56. g6+ {[%emt 0:03:45]} Kg7 {[%emt 0:00:00]} 57. Rh5 {[%emt 0:00:01]} Kxg6 {[%emt 0:00:00]} 58. Rxe5 {[%emt 0:00:02]} Ra4 {[%emt 0:00:00]} 59. Re4 {[%emt 0:00:15]} Ra2 {[%emt 0:00:00]} 60. Kf4 {[%emt 0:00:30]} Kf6 {[%emt 0:00:00]} 61. Rb4 {[%emt 0:00:04]} Ra6 {[%emt 0:00:00]} 62. Kg4 {[%emt 0:00:05]} Rc6 {[%emt 0:00:00]} 63. f4 {[%emt 0:00:02]} Ra6 {[%emt 0:00:00]} 64. Rb5 {[%emt 0:00:05]} Rc6 {[%emt 0:00:00]} 65. Rh5 {[%emt 0:00:02] Intending Rh6+ and mate.} Rc4 {[%emt 0:00:08]} 66. Rh6+ {[%emt 0:00:10]} Kg7 {[%emt 0:00:04]} 67. Rb6 {[%emt 0:00:16]} Rc5 {[%emt 0:00:13]} 68. f5 {[%emt 0:00:12]} Rc1 {[%emt 0:00:15]} 69. Kf4 {[%emt 0:00:04]} Rf1+ {[%emt 0:00:09]} 70. Ke5 {[%emt 0:00:13]} Re1+ {[%emt 0:00:07]} 71. Kd5 {[%emt 0:00:10]} Kf7 {[%emt 0:00:27] White really could win this.  Weighted Error Value: White=0.13 (very precise) /Black=0.10 (very precise)} 1/2-1/2